[Event "*** SCC Grand Prix: Titled Tuesday Blitz"]
[Site "Chess.com"]
[Date "2020.07.14"]
[Round "10"]
[White "crazychessbr"]
[Black "shnitez"]
[Result "1-0"]
[WhiteElo "2115"]
[BlackElo "2506"]
[TimeControl "180+1"]
[EndTime "11:58:47 PDT"]
[Termination "crazychessbr won on time"]

1. e4 {[%clk 0:03:00.9]} 1... c5 {[%clk 0:02:59.5]} 2. d3 {[%clk 0:03:00.6]}
2... Nc6 {[%clk 0:02:58.8]} 3. g3 {[%clk 0:03:00.9]} 3... g6 {[%clk 0:02:58.5]}
4. Bg2 {[%clk 0:03:01.5]} 4... Bg7 {[%clk 0:02:58.8]} 5. f4 {[%clk 0:03:02.1]}
5... d6 {[%clk 0:02:59.1]} 6. Nf3 {[%clk 0:03:02.7]} 6... e6 {[%clk 0:02:59.4]}
7. O-O {[%clk 0:03:03.4]} 7... Nge7 {[%clk 0:02:59.7]} 8. c3 {[%clk 0:03:02]}
8... O-O {[%clk 0:02:59.4]} 9. Be3 {[%clk 0:03:02.7]} 9... f5 {[%clk 0:02:54.2]}
10. Bf2 {[%clk 0:02:45.5]} 10... b6 {[%clk 0:02:51.3]} 11. Na3 {[%clk
0:02:44.6]} 11... Ba6 {[%clk 0:02:49.2]} 12. Re1 {[%clk 0:02:44]} 12... Qd7
{[%clk 0:02:46.4]} 13. Qd2 {[%clk 0:02:42.5]} 13... Rad8 {[%clk 0:02:45.7]} 14.
Rad1 {[%clk 0:02:41.9]} 14... h6 {[%clk 0:02:38.3]} 15. Nc2 {[%clk 0:02:39.7]}
15... Kh7 {[%clk 0:02:36.2]} 16. h3 {[%clk 0:02:36.9]} 16... Bb7 {[%clk
0:02:33.5]} 17. Kh2 {[%clk 0:02:35.7]} 17... a6 {[%clk 0:02:30.2]} 18. d4 {[%clk
0:02:01.8]} 18... fxe4 {[%clk 0:02:16.7]} 19. Nh4 {[%clk 0:02:01.4]} 19... cxd4
{[%clk 0:02:09.5]} 20. Bxe4 {[%clk 0:01:45.8]} 20... dxc3 {[%clk 0:02:09.3]} 21.
bxc3 {[%clk 0:01:45.9]} 21... d5 {[%clk 0:01:43.7]} 22. Bxb6 {[%clk 0:01:36.7]}
22... Rc8 {[%clk 0:01:29.8]} 23. Qd3 {[%clk 0:01:32.9]} 23... Qe8 {[%clk
0:01:23.8]} 24. Bf3 {[%clk 0:01:29.6]} 24... Qf7 {[%clk 0:01:20.1]} 25. Bg4
{[%clk 0:01:24.7]} 25... Nf5 {[%clk 0:01:14.8]} 26. Bxf5 {[%clk 0:00:57.4]}
26... exf5 {[%clk 0:01:04.3]} 27. Nd4 {[%clk 0:00:51.1]} 27... Rfe8 {[%clk
0:00:52.6]} 28. Re3 {[%clk 0:00:27.2]} 28... Re4 {[%clk 0:00:51]} 29. Rxe4
{[%clk 0:00:22.4]} 29... dxe4 {[%clk 0:00:48.9]} 30. Qe3 {[%clk 0:00:18.1]}
30... Qxa2+ {[%clk 0:00:41.4]} 31. Rd2 {[%clk 0:00:18.5]} 31... Qf7 {[%clk
0:00:36.2]} 32. g4 {[%clk 0:00:18.6]} 32... fxg4 {[%clk 0:00:31.9]} 33. hxg4
{[%clk 0:00:19.5]} 33... Nxd4 {[%clk 0:00:27.5]} 34. Bxd4 {[%clk 0:00:17.4]}
34... Bxd4 {[%clk 0:00:18]} 35. Rxd4 {[%clk 0:00:15.7]} 35... Rf8 {[%clk
0:00:14]} 36. f5 {[%clk 0:00:15.2]} 36... gxf5 {[%clk 0:00:11.1]} 37. Nxf5
{[%clk 0:00:16.1]} 37... Qg6 {[%clk 0:00:06.1]} 38. Rd6 {[%clk 0:00:15.2]} 38...
Qg5 {[%clk 0:00:03.4]} 39. Rxh6+ {[%clk 0:00:14.1]} 1-0

[Event "*** SCC Grand Prix: Titled Tuesday Blitz"]
[Site "Chess.com"]
[Date "2020.07.14"]
[Round "10"]
[White "RusPakhom"]
[Black "harlem4brew"]
[Result "0-1"]
[WhiteElo "2244"]
[BlackElo "2119"]
[TimeControl "180+1"]
[EndTime "11:58:47 PDT"]
[Termination "harlem4brew won by checkmate"]

1. c4 {[%clk 0:03:00.9]} 1... e6 {[%clk 0:02:59.1]} 2. Nc3 {[%clk 0:02:33.5]}
2... Nf6 {[%clk 0:02:57.7]} 3. d4 {[%clk 0:02:30]} 3... Bb4 {[%clk 0:02:56.7]}
4. Qc2 {[%clk 0:02:28.9]} 4... d5 {[%clk 0:02:55.5]} 5. Nf3 {[%clk 0:02:27.7]}
5... O-O {[%clk 0:02:54.5]} 6. e3 {[%clk 0:02:25.6]} 6... Ne4 {[%clk 0:02:53.3]}
7. Bd2 {[%clk 0:02:21.4]} 7... Nxd2 {[%clk 0:02:51.1]} 8. Nxd2 {[%clk
0:02:19.3]} 8... dxc4 {[%clk 0:02:46.6]} 9. Bxc4 {[%clk 0:02:18.2]} 9... c5
{[%clk 0:02:44.3]} 10. Nf3 {[%clk 0:02:16.6]} 10... Nc6 {[%clk 0:02:43.2]} 11.
Rd1 {[%clk 0:02:15.6]} 11... cxd4 {[%clk 0:02:40.4]} 12. Nxd4 {[%clk 0:02:15.1]}
12... Nxd4 {[%clk 0:02:37.9]} 13. Rxd4 {[%clk 0:02:14.6]} 13... Qc7 {[%clk
0:02:36.8]} 14. O-O {[%clk 0:02:07.3]} 14... Bc5 {[%clk 0:02:33.7]} 15. Rdd1
{[%clk 0:02:03.6]} 15... b6 {[%clk 0:02:27.6]} 16. Nb5 {[%clk 0:02:00.6]} 16...
Qe5 {[%clk 0:02:25.1]} 17. Nd4 {[%clk 0:01:55.6]} 17... Bb7 {[%clk 0:02:23.5]}
18. Be2 {[%clk 0:01:50.3]} 18... Rac8 {[%clk 0:02:21.7]} 19. Qa4 {[%clk
0:01:46.3]} 19... a5 {[%clk 0:02:20.2]} 20. a3 {[%clk 0:01:38.3]} 20... Bxd4
{[%clk 0:02:18.3]} 21. Rxd4 {[%clk 0:01:29]} 21... Rfd8 {[%clk 0:02:14.4]} 22.
Rxd8+ {[%clk 0:01:23.8]} 22... Rxd8 {[%clk 0:02:13.9]} 23. Qb3 {[%clk
0:01:23.4]} 23... Qg5 {[%clk 0:02:09.4]} 24. f3 {[%clk 0:01:16.1]} 24... Bd5
{[%clk 0:02:06.8]} 25. Qxb6 {[%clk 0:01:13.1]} 25... Re8 {[%clk 0:02:04.6]} 26.
e4 {[%clk 0:01:11.3]} 26... Ba8 {[%clk 0:02:02.9]} 27. Rd1 {[%clk 0:01:01.6]}
27... h5 {[%clk 0:01:57.5]} 28. Qb5 {[%clk 0:00:50.8]} 28... Qe3+ {[%clk
0:01:47.9]} 29. Kh1 {[%clk 0:00:50.9]} 29... Rf8 {[%clk 0:01:46.6]} 30. Qd3
{[%clk 0:00:46.7]} 30... Qf4 {[%clk 0:01:41.8]} 31. Bf1 {[%clk 0:00:43.9]} 31...
h4 {[%clk 0:01:39.6]} 32. b4 {[%clk 0:00:43.8]} 32... axb4 {[%clk 0:01:33.9]}
33. axb4 {[%clk 0:00:43.5]} 33... f5 {[%clk 0:01:27.8]} 34. exf5 {[%clk
0:00:34.9]} 34... h3 {[%clk 0:01:24.9]} 35. fxe6 {[%clk 0:00:26.7]} 35... hxg2+
{[%clk 0:01:18.5]} 36. Bxg2 {[%clk 0:00:26]} 36... Qxb4 {[%clk 0:01:19.4]} 37.
Qd4 {[%clk 0:00:18]} 37... Qe7 {[%clk 0:01:20.3]} 38. Qe3 {[%clk 0:00:17.3]}
38... Re8 {[%clk 0:01:15.3]} 39. Re1 {[%clk 0:00:16.5]} 39... Bd5 {[%clk
0:01:11.8]} 40. f4 {[%clk 0:00:15.5]} 40... Bxg2+ {[%clk 0:00:59]} 41. Kxg2
{[%clk 0:00:15.4]} 41... Qb7+ {[%clk 0:00:57.4]} 42. Qe4 {[%clk 0:00:15.6]}
42... Qb2+ {[%clk 0:00:55.3]} 43. Re2 {[%clk 0:00:15.7]} 43... Qf6 {[%clk
0:00:55.1]} 44. f5 {[%clk 0:00:14.5]} 44... Qg5+ {[%clk 0:00:52]} 45. Kf2 {[%clk
0:00:14.4]} 45... Rf8 {[%clk 0:00:49.3]} 46. e7 {[%clk 0:00:10.7]} 46... Rxf5+
{[%clk 0:00:48.7]} 47. Ke1 {[%clk 0:00:09.6]} 47... Qc1# {[%clk 0:00:48.1]} 0-1

[Event "*** SCC Grand Prix: Titled Tuesday Blitz"]
[Site "Chess.com"]
[Date "2020.07.14"]
[Round "10"]
[White "Jabberwockiez"]
[Black "guillembaches"]
[Result "0-1"]
[WhiteElo "2286"]
[BlackElo "2399"]
[TimeControl "180+1"]
[EndTime "11:58:48 PDT"]
[Termination "guillembaches won on time"]

1. e4 {[%clk 0:03:00.9]} 1... c5 {[%clk 0:03:00]} 2. Nc3 {[%clk 0:03:00.6]} 2...
Nc6 {[%clk 0:02:59.4]} 3. Nf3 {[%clk 0:03:00.2]} 3... d6 {[%clk 0:02:58.2]} 4.
d4 {[%clk 0:02:59.8]} 4... cxd4 {[%clk 0:02:59.1]} 5. Nxd4 {[%clk 0:03:00.7]}
5... Nf6 {[%clk 0:02:59.7]} 6. Be3 {[%clk 0:02:58.9]} 6... Ng4 {[%clk 0:02:58]}
7. Bg5 {[%clk 0:02:57.6]} 7... Qb6 {[%clk 0:02:56]} 8. Bb5 {[%clk 0:02:42.1]}
8... Bd7 {[%clk 0:02:44.2]} 9. Bxc6 {[%clk 0:02:04.9]} 9... bxc6 {[%clk
0:02:41.9]} 10. O-O {[%clk 0:01:59.2]} 10... e5 {[%clk 0:02:36.2]} 11. Nf5
{[%clk 0:01:52.4]} 11... Bxf5 {[%clk 0:02:24.2]} 12. exf5 {[%clk 0:01:53.3]}
12... Nf6 {[%clk 0:02:24.3]} 13. Bxf6 {[%clk 0:01:46.4]} 13... gxf6 {[%clk
0:02:25.2]} 14. Ne4 {[%clk 0:01:47.1]} 14... Qd8 {[%clk 0:02:23.5]} 15. c4
{[%clk 0:01:34.1]} 15... Be7 {[%clk 0:02:15.9]} 16. Qa4 {[%clk 0:01:26.2]} 16...
Qc7 {[%clk 0:01:57.7]} 17. Rfd1 {[%clk 0:01:16.9]} 17... O-O {[%clk 0:01:52.6]}
18. Qb3 {[%clk 0:00:52.5]} 18... Kh8 {[%clk 0:01:50]} 19. Qh3 {[%clk 0:00:47.9]}
19... Rg8 {[%clk 0:01:40.7]} 20. Qh6 {[%clk 0:00:37.4]} 20... Qd7 {[%clk
0:01:19.8]} 21. Rxd6 {[%clk 0:00:15.3]} 21... Bxd6 {[%clk 0:01:09.5]} 22. Qxf6+
{[%clk 0:00:15.4]} 22... Rg7 {[%clk 0:01:09]} 23. Nxd6 {[%clk 0:00:15.5]} 23...
Kg8 {[%clk 0:00:55]} 24. Qxe5 {[%clk 0:00:14]} 24... Rd8 {[%clk 0:00:39.3]} 25.
c5 {[%clk 0:00:14.2]} 25... f6 {[%clk 0:00:31.9]} 26. Qe3 {[%clk 0:00:11.2]}
26... Kh8 {[%clk 0:00:29.1]} 27. Re1 {[%clk 0:00:09.4]} 27... Rdg8 {[%clk
0:00:28]} 28. g3 {[%clk 0:00:09]} 28... a5 {[%clk 0:00:25.5]} 29. Qe6 {[%clk
0:00:08.6]} 29... Rf8 {[%clk 0:00:17]} 30. Qb3 {[%clk 0:00:03.1]} 30... Qa7
{[%clk 0:00:14.1]} 31. Qc3 {[%clk 0:00:01.4]} 31... h5 {[%clk 0:00:12.9]} 32.
Ne4 {[%clk 0:00:01.7]} 32... Qf7 {[%clk 0:00:11.8]} 33. f3 {[%clk 0:00:01.6]}
33... h4 {[%clk 0:00:12]} 34. Nd6 {[%clk 0:00:01.7]} 34... Qd5 {[%clk
0:00:11.4]} 0-1

[Event "*** SCC Grand Prix: Titled Tuesday Blitz"]
[Site "Chess.com"]
[Date "2020.07.14"]
[Round "10"]
[White "fighter2jz"]
[Black "Tash_Boy"]
[Result "1-0"]
[WhiteElo "2823"]
[BlackElo "2672"]
[TimeControl "180+1"]
[EndTime "11:58:49 PDT"]
[Termination "fighter2jz won by resignation"]

1. e4 {[%clk 0:03:00]} 1... c5 {[%clk 0:02:59.5]} 2. Nf3 {[%clk 0:02:58.7]} 2...
d6 {[%clk 0:03:00]} 3. d4 {[%clk 0:02:58.6]} 3... cxd4 {[%clk 0:03:00.9]} 4.
Nxd4 {[%clk 0:02:59.5]} 4... Nf6 {[%clk 0:03:01.3]} 5. Nc3 {[%clk 0:02:59.9]}
5... e6 {[%clk 0:03:01.8]} 6. Be2 {[%clk 0:02:57.8]} 6... Be7 {[%clk 0:02:56.2]}
7. O-O {[%clk 0:02:57.8]} 7... O-O {[%clk 0:02:55]} 8. f4 {[%clk 0:02:57.5]}
8... Nc6 {[%clk 0:02:54.8]} 9. Be3 {[%clk 0:02:56.8]} 9... e5 {[%clk 0:02:55.4]}
10. Nb3 {[%clk 0:02:52.8]} 10... exf4 {[%clk 0:02:54.9]} 11. Bxf4 {[%clk
0:02:53.7]} 11... Be6 {[%clk 0:02:55.4]} 12. Kh1 {[%clk 0:02:51.8]} 12... Nd7
{[%clk 0:02:54.8]} 13. Qd3 {[%clk 0:02:50.4]} 13... Nde5 {[%clk 0:02:54.5]} 14.
Qg3 {[%clk 0:02:50.6]} 14... Bh4 {[%clk 0:02:52.3]} 15. Qe3 {[%clk 0:02:50.5]}
15... Ng6 {[%clk 0:02:46.3]} 16. Bg3 {[%clk 0:02:47.2]} 16... Bg5 {[%clk
0:02:43.8]} 17. Qf2 {[%clk 0:02:43.3]} 17... f5 {[%clk 0:02:27.7]} 18. exf5
{[%clk 0:02:37.3]} 18... Rxf5 {[%clk 0:02:27.2]} 19. Qe1 {[%clk 0:02:32.6]}
19... Rxf1+ {[%clk 0:01:54.6]} 20. Bxf1 {[%clk 0:02:29.6]} 20... Qd7 {[%clk
0:01:44.8]} 21. Rd1 {[%clk 0:02:27.6]} 21... Bg4 {[%clk 0:01:24.4]} 22. Rxd6
{[%clk 0:02:24.9]} 22... Qf7 {[%clk 0:01:24.9]} 23. Bb5 {[%clk 0:01:11.6]} 23...
Re8 {[%clk 0:01:18]} 24. Qf1 {[%clk 0:01:11.6]} 24... Qxf1+ {[%clk 0:01:09.1]}
25. Bxf1 {[%clk 0:01:11.3]} 25... Nb4 {[%clk 0:01:04.1]} 26. Rd4 {[%clk
0:01:08.1]} 26... Rf8 {[%clk 0:00:34.4]} 27. Bc4+ {[%clk 0:01:05.6]} 27... Kh8
{[%clk 0:00:34.4]} 28. Rxg4 {[%clk 0:01:05.5]} 28... Bf4 {[%clk 0:00:24.4]} 29.
Bd3 {[%clk 0:00:51.8]} 29... Nxd3 {[%clk 0:00:17.7]} 30. cxd3 {[%clk 0:00:51.8]}
30... Be5 {[%clk 0:00:17.6]} 31. h3 {[%clk 0:00:49]} 31... Rf1+ {[%clk
0:00:13.9]} 32. Kh2 {[%clk 0:00:49.1]} 32... Bf6 {[%clk 0:00:14.2]} 33. Nd2
{[%clk 0:00:44.4]} 33... Ra1 {[%clk 0:00:11.2]} 34. Rc4 {[%clk 0:00:42.3]} 34...
h5 {[%clk 0:00:10.6]} 35. h4 {[%clk 0:00:40.7]} 35... Ne5 {[%clk 0:00:09.8]} 36.
Bxe5 {[%clk 0:00:34.3]} 36... Bxe5+ {[%clk 0:00:10.7]} 37. g3 {[%clk 0:00:34.7]}
37... Rc1 {[%clk 0:00:10.6]} 38. Nce4 {[%clk 0:00:34.1]} 38... Re1 {[%clk
0:00:10.8]} 39. Kg2 {[%clk 0:00:31.3]} 39... Kh7 {[%clk 0:00:10.4]} 40. Nf3
{[%clk 0:00:30.6]} 40... Re2+ {[%clk 0:00:10.2]} 41. Kf1 {[%clk 0:00:30.8]}
41... Rxb2 {[%clk 0:00:10.4]} 42. Nxe5 {[%clk 0:00:30.9]} 42... Rb1+ {[%clk
0:00:10.9]} 43. Kf2 {[%clk 0:00:30.8]} 43... b5 {[%clk 0:00:11.3]} 44. Ng5+
{[%clk 0:00:30.4]} 44... Kh6 {[%clk 0:00:09.6]} 45. Rc6+ {[%clk 0:00:27.2]} 1-0

[Event "*** SCC Grand Prix: Titled Tuesday Blitz"]
[Site "Chess.com"]
[Date "2020.07.14"]
[Round "10"]
[White "Vesper2018"]
[Black "Angel_Hranitel_37"]
[Result "1-0"]
[WhiteElo "2593"]
[BlackElo "2419"]
[TimeControl "180+1"]
[EndTime "11:58:49 PDT"]
[Termination "Vesper2018 won by checkmate"]

1. e4 {[%clk 0:03:00.9]} 1... c5 {[%clk 0:02:59.8]} 2. Nc3 {[%clk 0:03:00.6]}
2... Nc6 {[%clk 0:02:59.7]} 3. Bb5 {[%clk 0:03:00.9]} 3... Nd4 {[%clk
0:02:59.7]} 4. Bc4 {[%clk 0:03:01.2]} 4... e6 {[%clk 0:02:59.3]} 5. Nge2 {[%clk
0:02:57]} 5... Ne7 {[%clk 0:02:54]} 6. O-O {[%clk 0:02:54.4]} 6... Nec6 {[%clk
0:02:51.8]} 7. d3 {[%clk 0:02:49.9]} 7... a6 {[%clk 0:02:50.1]} 8. a4 {[%clk
0:02:49.6]} 8... Be7 {[%clk 0:02:47.2]} 9. f4 {[%clk 0:02:44.1]} 9... O-O {[%clk
0:02:46.7]} 10. Be3 {[%clk 0:02:38.9]} 10... Nxe2+ {[%clk 0:02:42.1]} 11. Qxe2
{[%clk 0:02:38.7]} 11... Nd4 {[%clk 0:02:41.9]} 12. Qf2 {[%clk 0:02:33.7]} 12...
Qc7 {[%clk 0:02:31]} 13. Kh1 {[%clk 0:02:30.5]} 13... f6 {[%clk 0:02:00.2]} 14.
a5 {[%clk 0:02:08]} 14... Kh8 {[%clk 0:01:52.9]} 15. Na4 {[%clk 0:02:00]} 15...
Qxa5 {[%clk 0:01:18.1]} 16. Nxc5 {[%clk 0:01:52]} 16... Qxc5 {[%clk 0:01:06.5]}
17. Bxd4 {[%clk 0:01:52.5]} 17... Qc6 {[%clk 0:01:04.1]} 18. Bb6 {[%clk
0:01:50.2]} 18... Bd8 {[%clk 0:01:00.7]} 19. Bxd8 {[%clk 0:01:37.3]} 19... Rxd8
{[%clk 0:01:01.6]} 20. f5 {[%clk 0:01:37.8]} 20... b5 {[%clk 0:01:01.1]} 21. Bb3
{[%clk 0:01:37.3]} 21... Bb7 {[%clk 0:00:39.1]} 22. Qg3 {[%clk 0:01:28]} 22...
d5 {[%clk 0:00:28.7]} 23. e5 {[%clk 0:01:07.8]} 23... fxe5 {[%clk 0:00:21.4]}
24. Qxe5 {[%clk 0:01:02.7]} 24... d4 {[%clk 0:00:21.7]} 25. Rf2 {[%clk
0:00:58.9]} 25... exf5 {[%clk 0:00:21.7]} 26. Qxf5 {[%clk 0:00:59.2]} 26... h6
{[%clk 0:00:18.1]} 27. Raf1 {[%clk 0:00:56.4]} 27... a5 {[%clk 0:00:08.2]} 28.
Re1 {[%clk 0:00:43.7]} 28... Re8 {[%clk 0:00:06.8]} 29. Ref1 {[%clk 0:00:36.7]}
29... a4 {[%clk 0:00:07]} 30. Ba2 {[%clk 0:00:33.3]} 30... a3 {[%clk 0:00:05]}
31. bxa3 {[%clk 0:00:30.3]} 31... Rxa3 {[%clk 0:00:05.7]} 32. Bb3 {[%clk
0:00:27.3]} 32... Raa8 {[%clk 0:00:05.4]} 33. h3 {[%clk 0:00:26.5]} 33... Re3
{[%clk 0:00:05.3]} 34. Kh2 {[%clk 0:00:26.2]} 34... Rae8 {[%clk 0:00:03.9]} 35.
Qg4 {[%clk 0:00:18.6]} 35... Qd6+ {[%clk 0:00:02.9]} 36. Kh1 {[%clk 0:00:18.6]}
36... Re2 {[%clk 0:00:01.8]} 37. Rxe2 {[%clk 0:00:18.4]} 37... Rxe2 {[%clk
0:00:02]} 38. Qxe2 {[%clk 0:00:18.7]} 38... Qg3 {[%clk 0:00:02.7]} 39. Qe8+
{[%clk 0:00:16.2]} 39... Kh7 {[%clk 0:00:03.4]} 40. Bg8+ {[%clk 0:00:16.4]}
40... Kh8 {[%clk 0:00:03.3]} 41. Bf7+ {[%clk 0:00:16.6]} 41... Kh7 {[%clk
0:00:03.9]} 42. Qg8# {[%clk 0:00:16.9]} 1-0

[Event "*** SCC Grand Prix: Titled Tuesday Blitz"]
[Site "Chess.com"]
[Date "2020.07.14"]
[Round "10"]
[White "poppy73"]
[Black "sasko1234"]
[Result "1-0"]
[WhiteElo "2250"]
[BlackElo "2377"]
[TimeControl "180+1"]
[EndTime "11:58:49 PDT"]
[Termination "poppy73 won on time"]

1. e4 {[%clk 0:03:00.9]} 1... d6 {[%clk 0:03:00.2]} 2. d4 {[%clk 0:03:00.1]}
2... Nf6 {[%clk 0:03:00.3]} 3. Nc3 {[%clk 0:03:00.2]} 3... c6 {[%clk 0:03:00.5]}
4. Be3 {[%clk 0:02:55.3]} 4... Qa5 {[%clk 0:03:00.1]} 5. f3 {[%clk 0:02:54.5]}
5... e5 {[%clk 0:02:59.8]} 6. Qd2 {[%clk 0:02:52]} 6... b5 {[%clk 0:02:58.4]} 7.
a4 {[%clk 0:02:47.6]} 7... b4 {[%clk 0:02:57.8]} 8. Nce2 {[%clk 0:02:46.9]} 8...
Be7 {[%clk 0:02:55.6]} 9. c3 {[%clk 0:02:42.7]} 9... bxc3 {[%clk 0:02:54.2]} 10.
bxc3 {[%clk 0:02:42.2]} 10... O-O {[%clk 0:02:53.3]} 11. h4 {[%clk 0:02:40.3]}
11... Be6 {[%clk 0:02:17.3]} 12. Nh3 {[%clk 0:02:36.9]} 12... Bxh3 {[%clk
0:02:10]} 13. Rxh3 {[%clk 0:02:35.1]} 13... Nbd7 {[%clk 0:02:10.1]} 14. h5
{[%clk 0:02:23.3]} 14... d5 {[%clk 0:02:05.8]} 15. Ng3 {[%clk 0:02:08.3]} 15...
dxe4 {[%clk 0:02:03.6]} 16. fxe4 {[%clk 0:02:07.7]} 16... exd4 {[%clk
0:01:56.9]} 17. Bxd4 {[%clk 0:02:00.1]} 17... Rfd8 {[%clk 0:01:14]} 18. Nf5
{[%clk 0:01:48.2]} 18... Bf8 {[%clk 0:01:03.4]} 19. Bd3 {[%clk 0:01:44.3]} 19...
c5 {[%clk 0:00:54]} 20. Bxf6 {[%clk 0:01:35.1]} 20... Nxf6 {[%clk 0:00:45.1]}
21. Qc2 {[%clk 0:01:35.1]} 21... Re8 {[%clk 0:00:40.2]} 22. Kf1 {[%clk
0:01:24.9]} 22... c4 {[%clk 0:00:38.5]} 23. Bxc4 {[%clk 0:01:23.2]} 23... Rxe4
{[%clk 0:00:38.6]} 24. Nd4 {[%clk 0:01:13.6]} 24... Rae8 {[%clk 0:00:25.4]} 25.
Bd3 {[%clk 0:01:08.6]} 25... R4e5 {[%clk 0:00:15.7]} 26. Nc6 {[%clk 0:01:00.1]}
26... Qd5 {[%clk 0:00:11]} 27. Nxe5 {[%clk 0:00:59.5]} 27... Rxe5 {[%clk
0:00:11]} 28. h6 {[%clk 0:00:53.8]} 28... g6 {[%clk 0:00:08.6]} 29. Rf3 {[%clk
0:00:52.1]} 29... Ng4 {[%clk 0:00:07.7]} 30. Qa2 {[%clk 0:00:43.6]} 30... Nh2+
{[%clk 0:00:06.4]} 31. Kf2 {[%clk 0:00:26.1]} 31... Qc5+ {[%clk 0:00:06.1]} 32.
Kg3 {[%clk 0:00:19.8]} 32... Nxf3 {[%clk 0:00:06]} 33. gxf3 {[%clk 0:00:17.7]}
33... Rg5+ {[%clk 0:00:05.9]} 34. Kh3 {[%clk 0:00:11.6]} 1-0

[Event "*** SCC Grand Prix: Titled Tuesday Blitz"]
[Site "Chess.com"]
[Date "2020.07.14"]
[Round "10"]
[White "wannabe2700"]
[Black "Ucitelot"]
[Result "1-0"]
[WhiteElo "2657"]
[BlackElo "2509"]
[TimeControl "180+1"]
[EndTime "11:58:51 PDT"]
[Termination "wannabe2700 won on time"]

1. d4 {[%clk 0:03:00.9]} 1... d5 {[%clk 0:02:58.6]} 2. c4 {[%clk 0:03:01.2]}
2... e6 {[%clk 0:02:58.4]} 3. Nc3 {[%clk 0:03:00.7]} 3... c6 {[%clk 0:02:58.4]}
4. e3 {[%clk 0:02:55]} 4... Nf6 {[%clk 0:02:58.1]} 5. Nf3 {[%clk 0:02:52.4]}
5... Nbd7 {[%clk 0:02:57.3]} 6. Qc2 {[%clk 0:02:48.1]} 6... Bd6 {[%clk
0:02:56.6]} 7. Bd3 {[%clk 0:02:45.6]} 7... dxc4 {[%clk 0:02:55.7]} 8. Bxc4
{[%clk 0:02:46.5]} 8... b5 {[%clk 0:02:54.9]} 9. Be2 {[%clk 0:02:46]} 9... Bb7
{[%clk 0:02:54.7]} 10. O-O {[%clk 0:02:46.2]} 10... a6 {[%clk 0:02:53.5]} 11. e4
{[%clk 0:02:43.5]} 11... e5 {[%clk 0:02:52.4]} 12. dxe5 {[%clk 0:02:42.9]} 12...
Nxe5 {[%clk 0:02:52.2]} 13. Nxe5 {[%clk 0:02:38]} 13... Bxe5 {[%clk 0:02:51.4]}
14. f4 {[%clk 0:02:38.5]} 14... Bd4+ {[%clk 0:02:48.6]} 15. Kh1 {[%clk
0:02:38.3]} 15... O-O {[%clk 0:02:48.1]} 16. Bf3 {[%clk 0:02:34.9]} 16... c5
{[%clk 0:02:40.2]} 17. Bd2 {[%clk 0:02:25.5]} 17... Re8 {[%clk 0:02:37.7]} 18.
Rae1 {[%clk 0:02:23.5]} 18... Rc8 {[%clk 0:02:31.1]} 19. e5 {[%clk 0:02:15.1]}
19... Bxf3 {[%clk 0:02:29.8]} 20. Rxf3 {[%clk 0:02:16]} 20... Ng4 {[%clk
0:02:16.6]} 21. h3 {[%clk 0:02:14.9]} 21... Qh4 {[%clk 0:02:07.4]} 22. Re2
{[%clk 0:01:58.8]} 22... c4 {[%clk 0:01:49.8]} 23. Ne4 {[%clk 0:01:57.7]} 23...
f6 {[%clk 0:01:23.3]} 24. Nd6 {[%clk 0:01:54]} 24... Nf2+ {[%clk 0:01:11.3]} 25.
Rfxf2 {[%clk 0:01:17.2]} 25... Bxf2 {[%clk 0:01:10.3]} 26. Nf5 {[%clk 0:01:04]}
26... Qh5 {[%clk 0:01:09.8]} 27. Rxf2 {[%clk 0:01:03.9]} 27... fxe5 {[%clk
0:01:09.8]} 28. Nd6 {[%clk 0:01:01.3]} 28... exf4 {[%clk 0:00:57.7]} 29. Nxc8
{[%clk 0:01:00.2]} 29... Re2 {[%clk 0:00:51.3]} 30. Qd1 {[%clk 0:00:48.5]} 30...
f3 {[%clk 0:00:49.6]} 31. Rxf3 {[%clk 0:00:43]} 31... Qe5 {[%clk 0:00:23.6]} 32.
Bc3 {[%clk 0:00:22.4]} 32... Qe6 {[%clk 0:00:13.8]} 33. Qd8+ {[%clk 0:00:19.4]}
33... Qe8 {[%clk 0:00:10.7]} 34. Qd5+ {[%clk 0:00:16.7]} 34... Kh8 {[%clk
0:00:08.7]} 35. Nd6 {[%clk 0:00:16.1]} 35... Re1+ {[%clk 0:00:03]} 36. Bxe1
{[%clk 0:00:15.6]} 36... Qxe1+ {[%clk 0:00:03.4]} 37. Kh2 {[%clk 0:00:15.8]}
37... h6 {[%clk 0:00:04.3]} 38. Qf5 {[%clk 0:00:11.6]} 38... Qd2 {[%clk
0:00:01.1]} 39. Nf7+ {[%clk 0:00:11.1]} 1-0

[Event "*** SCC Grand Prix: Titled Tuesday Blitz"]
[Site "Chess.com"]
[Date "2020.07.14"]
[Round "10"]
[White "XDPS"]
[Black "Nf3c5"]
[Result "1-0"]
[WhiteElo "2686"]
[BlackElo "2534"]
[TimeControl "180+1"]
[EndTime "11:58:54 PDT"]
[Termination "XDPS won by resignation"]

1. Nf3 {[%clk 0:03:00.9]} 1... c5 {[%clk 0:02:59.8]} 2. b3 {[%clk 0:02:59.3]}
2... Nc6 {[%clk 0:02:56.9]} 3. Bb2 {[%clk 0:02:56.6]} 3... d6 {[%clk 0:02:54.7]}
4. c4 {[%clk 0:02:53]} 4... e5 {[%clk 0:02:51.8]} 5. d3 {[%clk 0:02:49.7]} 5...
g6 {[%clk 0:02:50.7]} 6. g3 {[%clk 0:02:48.5]} 6... Bg7 {[%clk 0:02:50.8]} 7.
Bg2 {[%clk 0:02:48.3]} 7... Nge7 {[%clk 0:02:51.7]} 8. O-O {[%clk 0:02:45.1]}
8... O-O {[%clk 0:02:52.6]} 9. Nc3 {[%clk 0:02:42.1]} 9... a6 {[%clk 0:02:50.2]}
10. Nd2 {[%clk 0:02:40.6]} 10... Rb8 {[%clk 0:02:49.3]} 11. Nd5 {[%clk 0:02:40]}
11... b5 {[%clk 0:02:34.6]} 12. Ne4 {[%clk 0:02:30.4]} 12... Nxd5 {[%clk
0:02:25.7]} 13. cxd5 {[%clk 0:02:29.9]} 13... Ne7 {[%clk 0:02:26.6]} 14. Nd2
{[%clk 0:02:14.8]} 14... Bb7 {[%clk 0:02:11.4]} 15. e4 {[%clk 0:02:13.4]} 15...
a5 {[%clk 0:01:59.9]} 16. a4 {[%clk 0:02:12.8]} 16... bxa4 {[%clk 0:01:51.2]}
17. Rxa4 {[%clk 0:02:08.2]} 17... Ba6 {[%clk 0:01:52.1]} 18. Qc2 {[%clk
0:02:06.6]} 18... Bh6 {[%clk 0:01:45]} 19. Bc3 {[%clk 0:02:03.6]} 19... Qd7
{[%clk 0:01:16.1]} 20. Rxa5 {[%clk 0:01:59.2]} 20... Bb5 {[%clk 0:01:16.3]} 21.
Nc4 {[%clk 0:01:57.8]} 21... Bxc4 {[%clk 0:01:11.9]} 22. dxc4 {[%clk 0:01:19.5]}
22... Rb7 {[%clk 0:01:05.3]} 23. Rfa1 {[%clk 0:01:12.7]} 23... f5 {[%clk
0:01:00.1]} 24. Ra6 {[%clk 0:01:05.1]} 24... fxe4 {[%clk 0:00:54.7]} 25. Bxe4
{[%clk 0:01:03.6]} 25... Nf5 {[%clk 0:00:54.8]} 26. Bxf5 {[%clk 0:00:53.7]}
26... Rxf5 {[%clk 0:00:52]} 27. Be1 {[%clk 0:00:38.6]} 27... Bg7 {[%clk
0:00:43.3]} 28. R1a4 {[%clk 0:00:37.3]} 28... h5 {[%clk 0:00:41.4]} 29. b4
{[%clk 0:00:37.1]} 29... cxb4 {[%clk 0:00:39.3]} 30. Rxb4 {[%clk 0:00:38]} 30...
Rc7 {[%clk 0:00:39.3]} 31. Rbb6 {[%clk 0:00:36]} 31... Bf8 {[%clk 0:00:39.5]}
32. Bb4 {[%clk 0:00:30.2]} 32... Rf6 {[%clk 0:00:33.3]} 33. c5 {[%clk
0:00:27.8]} 33... Qf7 {[%clk 0:00:33.4]} 34. Qd2 {[%clk 0:00:18.2]} 34... Kh7
{[%clk 0:00:28.8]} 35. cxd6 {[%clk 0:00:15.3]} 35... Rd7 {[%clk 0:00:27.1]} 36.
Rc6 {[%clk 0:00:15.1]} 36... Bh6 {[%clk 0:00:26.9]} 37. Qc2 {[%clk 0:00:10.9]}
37... Rb7 {[%clk 0:00:25.8]} 38. Rc7 {[%clk 0:00:10.6]} 38... Rxc7 {[%clk
0:00:21.1]} 39. dxc7 {[%clk 0:00:10.8]} 39... Be3 {[%clk 0:00:22]} 40. Rxf6
{[%clk 0:00:09]} 40... Qxf6 {[%clk 0:00:21.8]} 41. c8=Q {[%clk 0:00:08.7]} 1-0